fUST/lending_fUST_20250822
["ID","MTS","AMOUNT","RATE_DAILY","PERIOD"]
[380555962,1755808259940,-204.949964,0.000207,2]
[380555964,1755808259949,-204.949964,0.000207,2]
[380555966,1755808259958,-151.0,0.000207,2]
[380555968,1755808259968,-151.0,0.000207,2]
[380555970,1755808259977,-151.0,0.000207,2]
[380555972,1755808259986,-196.233621,0.000207,2]
[380555974,1755808259996,-196.233621,0.000207,2]
[380555976,1755808260005,-196.233621,0.000207,2]
[380555978,1755808260015,-196.233621,0.000207,2]
[380555980,1755808260023,-151.0,0.000207,2]
[380555982,1755808260033,-151.0,0.000207,2]
[380555983,1755808260042,-151.0,0.000207,2]
[380555985,1755808260051,-227.103252,0.000207,2]
[380555987,1755808260060,-227.103252,0.000207,2]
[380555989,1755808260070,-227.103252,0.000207,2]
[380555991,1755808260080,-227.103252,0.000207,2]
[380555993,1755808260089,-151.0,0.000207,2]
[380555995,1755808260098,-1382.226836,0.000207,2]
[380555997,1755808260107,-1382.226836,0.000207,2]
[380555999,1755808260117,-1382.226836,0.000207,2]
[380556001,1755808260127,-1382.226836,0.000207,2]
[380556003,1755808260136,-12726.43843211,0.00020721,2]
[380556005,1755808260145,-199.0,0.00020739,10]
[380556007,1755808260155,-172.0,0.00020786,2]
[380556009,1755808260164,-480.0,0.00020821,2]
[380556011,1755808260173,-956.81,0.00020821,2]
[380556013,1755808260183,-480.0,0.00020821,2]
[380556015,1755808260192,-169.91,0.00020821,2]
[380556017,1755808260201,-480.0,0.00020821,2]
[380556019,1755808260211,-480.0,0.00020821,2]
[380556021,1755808260220,-480.0,0.00020821,2]
[380556023,1755808260229,-480.0,0.00020821,2]
[380556025,1755808260239,-480.0,0.00020821,2]
[380556027,1755808260248,-419.25,0.00020821,2]
[380556029,1755808260258,-480.0,0.00020821,2]
[380556031,1755808260267,-480.0,0.00020821,2]
[380556033,1755808260277,-480.0,0.00020821,2]
[380556035,1755808260286,-968.44,0.00020821,2]
[380556037,1755808260296,-969.14,0.00020821,2]
[380556039,1755808260305,-480.0,0.00020821,2]
[380556041,1755808260315,-490.65321019,0.00020821,2]
[380556043,1755808260324,-480.0,0.00020821,2]
[380556045,1755808260333,-480.0,0.00020821,2]
[380556047,1755808260343,-480.0,0.00020821,2]
[380556049,1755808260353,-315.11,0.00020821,2]
[380556051,1755808260362,-480.0,0.00020821,2]
[380556053,1755808260371,-480.0,0.00020821,2]
[380556055,1755808260380,-480.0,0.00020821,2]
[380556057,1755808260390,-763.78,0.00020821,2]
[380556059,1755808260399,-1230.62,0.00020821,2]
[380556061,1755808260408,-575.71,0.00020821,2]
[380556063,1755808260417,-480.0,0.00020821,2]
[380556065,1755808260429,-480.0,0.00020821,2]
[380556067,1755808260440,-480.0,0.00020821,2]
[380556068,1755808260449,-480.0,0.00020821,2]
[380556070,1755808260458,-480.0,0.00020821,2]
[380556072,1755808260467,-480.0,0.00020821,2]
[380556074,1755808260477,-480.0,0.00020821,2]
[380556076,1755808260486,-979.98,0.00020821,2]
[380556078,1755808260496,-480.0,0.00020821,2]
[380556080,1755808260505,-502.39,0.00020821,2]
[380556082,1755808260514,-440.08,0.00020821,2]
[380556084,1755808260523,-480.0,0.00020821,2]
[380556086,1755808260532,-2606.28,0.00020821,2]
[380556088,1755808260542,-480.0,0.00020821,2]
[380556090,1755808260551,-480.0,0.00020821,2]
[380556092,1755808260560,-2231.79,0.00020821,2]
[380556094,1755808260569,-685.12,0.00020821,2]
[380556096,1755808260578,-480.0,0.00020821,2]
[380556098,1755808260587,-480.0,0.00020821,2]
[380556100,1755808260597,-480.0,0.00020821,2]
[380556102,1755808260607,-947.83,0.00020821,2]
[380556104,1755808260617,-764.17,0.00020821,2]
[380556106,1755808260626,-704.07,0.00020821,2]
[380556108,1755808260635,-480.0,0.00020821,2]
[380556110,1755808260645,-480.0,0.00020821,2]
[380556111,1755808260654,-480.0,0.00020821,2]
[380556113,1755808260663,-905.55,0.00020821,2]
[380556115,1755808260673,-1859.19,0.00020821,2]
[380556117,1755808260683,-1348.71,0.00020821,2]
[380556119,1755808260692,-1068.04,0.00020821,2]
[380556121,1755808260702,-480.0,0.00020821,2]
[380556123,1755808260711,-480.0,0.00020821,2]
[380556125,1755808260721,-1092.9,0.00020821,2]
[380556127,1755808260730,-480.0,0.00020821,2]
[380556129,1755808260739,-4632.7,0.00020821,2]
[380556131,1755808260749,-480.0,0.00020821,2]
[380556133,1755808260758,-1639.18,0.00020821,2]
[380556135,1755808260767,-871.0,0.00020821,2]
[380556137,1755808260776,-480.0,0.00020821,2]
[380556139,1755808260786,-1839.51,0.00020821,2]
[380556141,1755808260795,-943.69,0.00020821,2]
[380556143,1755808260805,-1279.12,0.00020821,2]
[380556145,1755808260814,-500.19,0.00020821,2]
[380556147,1755808260823,-644.77,0.00020821,2]
[380556149,1755808260832,-7368.41,0.00020821,2]
[380556151,1755808260842,-904.57,0.00020821,2]
[380556153,1755808260852,-480.0,0.00020821,2]
[380556155,1755808260862,-480.0,0.00020821,2]
[380556157,1755808260871,-2226.97,0.00020821,2]
[380556159,1755808260881,-480.0,0.00020821,2]
[380556161,1755808260890,-589.33,0.00020821,2]
[380556163,1755808260900,-152.12,0.00020821,2]
[380556165,1755808260910,-590.26,0.00020821,2]
[380556167,1755808260919,-2931.52,0.00020821,2]
[380556169,1755808260931,-1477.5,0.00020821,2]
[380556171,1755808260941,-480.0,0.00020821,2]
[380556173,1755808260951,-3237.28,0.00020821,2]
[380556175,1755808260961,-2381.45,0.00020821,2]
[380556177,1755808260971,-548.56,0.00020821,2]
[380556179,1755808260981,-480.0,0.00020821,2]
[380556181,1755808260990,-480.0,0.00020821,2]
[380556183,1755808260999,-7210.24,0.00020821,2]
[380556185,1755808261009,-480.0,0.00020821,2]
[380556187,1755808261018,-480.0,0.00020821,2]
[380556189,1755808261027,-494.32,0.00020821,2]
[380556191,1755808261037,-480.0,0.00020821,2]
[380556193,1755808261047,-804.93,0.00020821,2]
[380556195,1755808261056,-685.15,0.00020821,2]
[380556197,1755808261066,-480.0,0.00020821,2]
[380556199,1755808261075,-1714.15,0.00020821,2]
[380556201,1755808261084,-480.0,0.00020821,2]
[380556203,1755808261094,-480.0,0.00020821,2]
[380556205,1755808261103,-192.29,0.00020821,2]
[380556206,1755808261113,-2021.04,0.00020821,2]
[380556208,1755808261121,-4624.04,0.00020821,2]
[380556210,1755808261131,-697.43,0.00020821,2]
[380556212,1755808261140,-480.0,0.00020821,2]
[380556214,1755808261150,-850.67,0.00020821,2]
[380556216,1755808261159,-2191.48,0.00020821,2]
[380556218,1755808261169,-396.88,0.00020821,2]
[380556220,1755808261179,-486.66,0.00020821,2]
[380556222,1755808261189,-676.79,0.00020821,2]
[380556224,1755808261199,-480.0,0.00020821,2]
[380556226,1755808261208,-480.0,0.00020821,2]
[380556228,1755808261217,-480.0,0.00020821,2]
[380556230,1755808261226,-836.39,0.00020821,2]
[380556232,1755808261235,-151.0,0.00020822,2]
[380556234,1755808261245,-190.89222303,0.00020822,2]
[380556236,1755808261254,-151.0,0.00020822,2]
[380556238,1755808261263,-151.0,0.00020822,2]
[380556240,1755808261273,-151.0,0.00020822,2]
[380556242,1755808261283,-500.0,0.00020822,2]
[380556244,1755808261292,-151.0,0.00020822,2]
[380556246,1755808261301,-151.0,0.00020822,2]
[380556248,1755808261311,-151.0,0.00020822,2]
[380556250,1755808261320,-151.0,0.00020822,2]
[380556252,1755808261329,-151.0,0.00020822,2]
[380556254,1755808261339,-151.0,0.00020822,2]
[380556256,1755808261348,-500.0,0.00020822,2]
[380556258,1755808261357,-500.0,0.00020822,2]
[380556260,1755808261367,-151.0,0.00020822,2]
[380556262,1755808261376,-955.0,0.00020822,2]
[380556264,1755808261386,-500.0,0.00020822,2]
[380556266,1755808261395,-151.0,0.00020822,2]
[380556268,1755808261405,-500.0,0.00020822,2]
[380556270,1755808261414,-200.2887846,0.00020822,2]
[380556272,1755808261425,-264.62832098,0.00020822,2]
[380556274,1755808261438,-176.03762668,0.00020822,2]
[380556276,1755808261447,-151.0,0.00020822,2]
[380556278,1755808261457,-151.0,0.00020822,2]
[380556280,1755808261466,-151.0,0.00020822,2]
[380556282,1755808261476,-151.0,0.00020822,2]
[380556284,1755808261485,-500.0,0.00020835,2]
[380556286,1755808261494,-500.0,0.00020835,2]
[380556288,1755808261504,-500.0,0.00020835,2]
[380556290,1755808261514,-8746.95122769,0.00020835,2]
[380556292,1755808261524,-1000.0,0.00020868,2]
[380556294,1755808261533,-172.0,0.00020882,2]
[380556296,1755808261543,-420.0,0.00020888,2]
[380556298,1755808261552,-172.0,0.0002094,2]
[380556300,1755808261561,-172.0,0.00020984,2]
[380556302,1755808261571,-1680.0,0.0002099,2]
[380556304,1755808261580,-25680.89299818,0.00020998,2]
[380556306,1755808261590,-11448.72490966,0.00021001,5]
[380556308,1755808261599,-393.14,0.00021095,2]
[380556310,1755808261610,-956.81,0.00021095,2]
[380556312,1755808261619,-261.65,0.00021095,2]
[380556314,1755808261628,-480.0,0.00021095,2]
[380556315,1755808261637,-480.0,0.00021095,2]
[380556317,1755808261647,-578.03,0.00021095,2]
[380556319,1755808261657,-480.0,0.00021095,2]
[380556321,1755808261666,-480.0,0.00021095,2]
[380556323,1755808261676,-613.05836614,0.00021095,2]
[380556326,1755808261686,-480.0,0.00021095,2]
[380556327,1755808261696,-480.0,0.00021095,2]
[380556340,1755808261798,-968.44,0.00021095,2]
[380556342,1755808261819,-969.14,0.00021095,2]
[380556344,1755808261828,-480.0,0.00021095,2]
[380556346,1755808261838,-480.0,0.00021095,2]
[380556348,1755808261847,-480.0,0.00021095,2]
[380556350,1755808261856,-480.0,0.00021095,2]
[380556352,1755808261865,-480.0,0.00021095,2]
[380556353,1755808261874,-480.0,0.00021095,2]
[380556354,1755808261883,-480.0,0.00021095,2]
[380556355,1755808261892,-763.78,0.00021095,2]
[380556356,1755808261902,-1230.62,0.00021095,2]
[380556357,1755808261911,-575.71,0.00021095,2]
[380556358,1755808261920,-480.0,0.00021095,2]
[380556359,1755808261932,-480.0,0.00021095,2]
[380556360,1755808261941,-480.0,0.00021095,2]
[380556361,1755808261950,-480.0,0.00021095,2]
[380556362,1755808261959,-165.12,0.00021095,2]
[380556363,1755808261968,-151.0,0.00021095,2]
[380556365,1755808261978,-269.55,0.00021095,2]
[380556367,1755808261987,-179.595668,0.00021095,2]
[380556369,1755808261996,-480.0,0.00021095,2]
[380556371,1755808262005,-151.0,0.00021095,2]
[380556373,1755808262014,-165.933761,0.00021095,2]
[380556375,1755808262023,-979.98,0.00021095,2]
[380556377,1755808262032,-480.0,0.00021095,2]
[380556379,1755808262042,-151.0,0.00021095,2]
[380556381,1755808262051,-502.39,0.00021095,2]
[380556383,1755808262060,-151.0,0.00021095,2]
[380556385,1755808262070,-480.0,0.00021095,2]
[380556387,1755808262079,-2606.28,0.00021095,2]
[380556389,1755808262088,-480.0,0.00021095,2]
[380556391,1755808262097,-480.0,0.00021095,2]
[380556393,1755808262106,-2231.79,0.00021095,2]
[380556395,1755808262115,-685.12,0.00021095,2]
[380556397,1755808262124,-550.46400709,0.00021095,2]
[380556399,1755808262133,-480.0,0.00021095,2]
[380556401,1755808262143,-480.0,0.00021095,2]
[380556403,1755808262152,-151.0,0.00021095,2]
[380556405,1755808262162,-192.14808,0.00021095,2]
[380556407,1755808262172,-947.83,0.00021095,2]
[380556409,1755808262184,-192.14808,0.00021095,2]
[380556411,1755808262193,-764.17,0.00021095,2]
[380556413,1755808262203,-151.0,0.00021095,2]
[380556415,1755808262212,-704.07,0.00021095,2]
[380556417,1755808262221,-192.14808,0.00021095,2]
[380556419,1755808262231,-192.148072,0.00021095,2]
[380556422,1755808262241,-151.0,0.00021095,2]
[380556424,1755808262251,-480.0,0.00021095,2]
[380556426,1755808262260,-151.0,0.00021095,2]
[380556428,1755808262269,-217.997536,0.00021095,2]
[380556429,1755808262278,-480.0,0.00021095,2]
[380556432,1755808262287,-480.0,0.00021095,2]
[380556433,1755808262297,-905.55,0.00021095,2]
[380556435,1755808262306,-1859.19,0.00021095,2]
[380556437,1755808262316,-1348.71,0.00021095,2]
[380556439,1755808262325,-151.0,0.00021095,2]
[380556441,1755808262334,-1068.04,0.00021095,2]
[380556443,1755808262343,-151.0,0.00021095,2]
[380556445,1755808262353,-160.226413,0.00021095,2]
[380556447,1755808262363,-480.0,0.00021095,2]
[380556449,1755808262372,-317.3,0.00021095,2]
[380556452,1755808262382,-1092.9,0.00021095,2]
[380556454,1755808262391,-480.0,0.00021095,2]
[380556456,1755808262401,-151.0,0.00021095,2]
[380556457,1755808262410,-151.0,0.00021095,2]
[380556459,1755808262420,-4632.7,0.00021095,2]
[380556462,1755808262434,-480.0,0.00021095,2]
[380556463,1755808262452,-1639.18,0.00021095,2]
[380556466,1755808262463,-151.0,0.00021095,2]
[380556467,1755808262472,-871.0,0.00021095,2]
[380556470,1755808262481,-480.0,0.00021095,2]
[380556472,1755808262490,-1839.51,0.00021095,2]
[380556474,1755808262500,-943.69,0.00021095,2]
[380556476,1755808262510,-207.836186,0.00021095,2]
[380556478,1755808262519,-1279.12,0.00021095,2]
[380556480,1755808262528,-151.0,0.00021095,2]
[380556482,1755808262537,-500.19,0.00021095,2]
[380556483,1755808262546,-644.77,0.00021095,2]
[380556485,1755808262556,-7368.41,0.00021095,2]
[380556487,1755808262565,-904.57,0.00021095,2]
[380556489,1755808262574,-480.0,0.00021095,2]
[380556491,1755808262584,-480.0,0.00021095,2]
[380556493,1755808262593,-1315.17863,0.00021095,2]
[380556495,1755808262603,-1315.17863,0.00021095,2]
[380556497,1755808262612,-433.991498,0.00021095,2]
[380556499,1755808262621,-1315.17863,0.00021095,2]
[380556501,1755808262630,-433.991498,0.00021095,2]
[380556503,1755808262640,-1315.178632,0.00021095,2]
[380556505,1755808262650,-433.991498,0.00021095,2]
[380556507,1755808262659,-2226.97,0.00021095,2]
[380556509,1755808262668,-433.99149,0.00021095,2]
[380556511,1755808262677,-398.46,0.00021095,2]
[380556513,1755808262686,-589.33,0.00021095,2]
[380556515,1755808262695,-2931.52,0.00021095,2]
[380556517,1755808262704,-151.0,0.00021095,2]
[380556519,1755808262715,-1477.5,0.00021095,2]
[380556522,1755808262724,-480.0,0.00021095,2]
[380556523,1755808262733,-3237.28,0.00021095,2]
[380556526,1755808262743,-178.290292,0.00021095,2]
[380556527,1755808262752,-151.0,0.00021095,2]
[380556530,1755808262761,-151.0,0.00021095,2]
[380556532,1755808262770,-151.0,0.00021095,2]
[380556534,1755808262780,-2381.45,0.00021095,2]
[380556536,1755808262788,-548.56,0.00021095,2]
[380556538,1755808262798,-480.0,0.00021095,2]
[380556540,1755808262807,-480.0,0.00021095,2]
[380556542,1755808262816,-7210.24,0.00021095,2]
[380556543,1755808262827,-480.0,0.00021095,2]
[380556545,1755808262837,-430.879657,0.00021095,2]
[380556547,1755808262846,-480.0,0.00021095,2]
[380556550,1755808262856,-430.879657,0.00021095,2]
[380556552,1755808262865,-430.879657,0.00021095,2]
[380556554,1755808262875,-204.949964,0.00021095,2]
[380556556,1755808262884,-430.879661,0.00021095,2]
[380556558,1755808262893,-204.949964,0.00021095,2]
[380556559,1755808262902,-204.949964,0.00021095,2]
[380556561,1755808262912,-494.32,0.00021095,2]
[380556563,1755808262921,-204.949961,0.00021095,2]
[380556565,1755808262931,-151.0,0.00021095,2]
[380556567,1755808262941,-480.0,0.00021095,2]
[380556569,1755808262950,-151.0,0.00021095,2]
[380556571,1755808262959,-156.309803,0.00021095,2]
[380556573,1755808262968,-804.93,0.00021095,2]
[380556575,1755808262977,-196.233621,0.00021095,2]
[380556577,1755808262985,-685.15,0.00021095,2]
[380556578,1755808262994,-196.233621,0.00021095,2]
[380556580,1755808263003,-480.0,0.00021095,2]
[380556582,1755808263012,-1714.15,0.00021095,2]
[380556584,1755808263021,-196.233621,0.00021095,2]
[380556586,1755808263030,-196.233628,0.00021095,2]
[380556588,1755808263040,-480.0,0.00021095,2]
[380556590,1755808263049,-151.0,0.00021095,2]
[380556592,1755808263059,-151.0,0.00021095,2]
[380556594,1755808263069,-480.0,0.00021095,2]
[380556596,1755808263079,-151.0,0.00021095,2]
[380556598,1755808263088,-2021.04,0.00021095,2]
[380556600,1755808263098,-4624.04,0.00021095,2]
[380556602,1755808263107,-697.43,0.00021095,2]
[380556604,1755808263117,-227.103252,0.00021095,2]
[380556606,1755808263126,-227.103252,0.00021095,2]
[380556608,1755808263136,-227.103252,0.00021095,2]
[380556610,1755808263146,-480.0,0.00021095,2]
[380556612,1755808263156,-227.103259,0.00021095,2]
[380556614,1755808263166,-850.67,0.00021095,2]
[380556616,1755808263175,-2191.48,0.00021095,2]
[380556618,1755808263185,-486.66,0.00021095,2]
[380556620,1755808263194,-676.79,0.00021095,2]
[380556622,1755808263204,-480.0,0.00021095,2]
[380556624,1755808263213,-480.0,0.00021095,2]
[380556626,1755808263223,-151.0,0.00021095,2]
[380556628,1755808263232,-480.0,0.00021095,2]
[380556630,1755808263242,-1382.226836,0.00021095,2]
[380556632,1755808263251,-1382.226836,0.00021095,2]
[380556634,1755808263260,-1382.226836,0.00021095,2]
[380556636,1755808263271,-1382.22683146,0.00021095,2]
[380556638,1755808263279,-151.0,0.00021096,2]
[380556640,1755808263288,-151.0,0.00021096,2]
[380556642,1755808263298,-437.74543599,0.00021096,2]
[380556643,1755808263307,-194.58011813,0.00021096,2]
[380556645,1755808263316,-151.0,0.00021096,2]
[380556647,1755808263325,-181.313345,0.00021096,2]
[380556649,1755808263335,-151.0,0.00021096,2]
[380556651,1755808263344,-151.0,0.00021096,2]
[380556653,1755808263353,-151.0,0.00021096,2]
[380556655,1755808263362,-500.0,0.00021096,2]
[380556657,1755808263372,-500.0,0.00021096,2]
[380556659,1755808263381,-151.0,0.00021096,2]
[380556661,1755808263391,-955.0,0.00021096,2]
[380556663,1755808263400,-500.0,0.00021096,2]
[380556665,1755808263409,-151.0,0.00021096,2]
[380556667,1755808263419,-500.0,0.00021096,2]
[380556669,1755808263429,-151.0,0.00021096,2]
[380556671,1755808263440,-151.0,0.00021096,2]
[380556673,1755808263450,-151.0,0.00021096,2]
[380556675,1755808263459,-174.0753,0.00021116,2]
[380556677,1755808263468,-174.0753,0.00021116,2]
[380556678,1755808263478,-174.0753,0.00021116,2]
[380556680,1755808263488,-174.0753,0.00021116,2]
[380556682,1755808263498,-2000.0,0.00021116,2]
[380556684,1755808263507,-2000.0,0.00021116,2]
[380556686,1755808263516,-2000.0,0.00021116,2]
[380556688,1755808263526,-2000.0,0.00021116,2]
[380556690,1755808263535,-1500.0,0.00021116,2]
[380556692,1755808263546,-569.61629274,0.00021116,2]
[380556694,1755808263555,-2000.0,0.00021116,2]
[380556696,1755808263565,-2000.0,0.00021116,2]
[380556698,1755808263574,-2000.0,0.00021116,2]
[380556700,1755808263584,-2000.0,0.00021116,2]
[380556702,1755808263593,-2000.0,0.00021116,2]
[380556704,1755808263602,-151.0,0.00021188,2]
[380556706,1755808263611,-6295.11884119,0.000212,30]
[380556708,1755808263620,-260.0,0.00021208,2]
[380556710,1755808263629,-1000.0,0.00021221,2]
[380556712,1755808263639,-1000.0,0.00021221,2]
[380556714,1755808263648,-500.0,0.00021221,2]
[380556715,1755808263657,-1000.0,0.00021221,2]
[380556717,1755808263666,-500.0,0.00021221,2]
[380556719,1755808263676,-1000.0,0.00021221,2]
[380556721,1755808263685,-1000.0,0.00021221,2]
[380556723,1755808263694,-1000.0,0.00021221,2]
[380556725,1755808263704,-1000.0,0.00021221,2]
[380556727,1755808263713,-771.79791669,0.00021221,2]
[380556729,1755808263722,-963.80655881,0.00021221,2]
[380556731,1755808263731,-1000.0,0.00021221,2]
[380556733,1755808263740,-1000.0,0.00021221,2]
[380556734,1755808263750,-1000.0,0.00021221,2]
[380556736,1755808263759,-229.17593998,0.00021221,2]
[380556738,1755808263768,-1008.92533935,0.00021221,2]
[380556740,1755808263778,-1000.0,0.00021221,2]
[380556742,1755808263787,-1001.83718057,0.00021221,2]
[380556744,1755808263797,-1000.0,0.00021221,2]
[380556746,1755808263806,-505.64626977,0.00021221,2]
[380556748,1755808263815,-1000.0,0.00021221,2]
[380556750,1755808263825,-500.0,0.00021221,2]
[380556752,1755808263834,-326.79610947,0.00021238,2]
[380556754,1755808263844,-172.0,0.0002124,2]
[380556756,1755808263853,-151.0,0.00021268,2]
[380556758,1755808263862,-151.0,0.00021268,2]
[380556760,1755808263871,-500.0,0.00021268,2]
[380556762,1755808263881,-500.0,0.00021268,2]
[380556764,1755808263891,-172.0,0.00021271,2]
[380556766,1755808263900,-460.339,0.00021323,2]
[380556768,1755808263909,-172.0,0.00021356,2]
[380556770,1755808263918,-172.0,0.00021363,2]
[380556772,1755808263928,-168.0,0.00021367,2]
[380556774,1755808263938,-151.0,0.00021369,2]
[380556776,1755808263947,-151.0,0.00021369,2]
[380556778,1755808263956,-956.81,0.00021369,2]
[380556780,1755808263966,-480.0,0.00021369,2]
[380556782,1755808263975,-480.0,0.00021369,2]
[380556784,1755808263984,-480.0,0.00021369,2]
[380556786,1755808263993,-480.0,0.00021369,2]
[380556788,1755808264003,-480.0,0.00021369,2]
[380556800,1755808264120,-151.0,0.00021369,2]
[380556802,1755808264130,-480.0,0.00021369,2]
[380556804,1755808264141,-968.44,0.00021369,2]
[380556806,1755808264152,-969.14,0.00021369,2]
[380556808,1755808264162,-480.0,0.00021369,2]
[380556810,1755808264171,-480.0,0.00021369,2]
[380556812,1755808264180,-480.0,0.00021369,2]
[380556814,1755808264189,-480.0,0.00021369,2]
[380556816,1755808264199,-480.0,0.00021369,2]
[380556818,1755808264208,-480.0,0.00021369,2]
[380556820,1755808264217,-480.0,0.00021369,2]
[380556822,1755808264227,-763.78,0.00021369,2]
[380556824,1755808264236,-1230.62,0.00021369,2]
[380556826,1755808264245,-575.71,0.00021369,2]
[380556828,1755808264255,-480.0,0.00021369,2]
[380556829,1755808264264,-480.0,0.00021369,2]
[380556831,1755808264273,-480.0,0.00021369,2]
[380556833,1755808264282,-480.0,0.00021369,2]
[380556835,1755808264292,-480.0,0.00021369,2]
[380556837,1755808264302,-979.98,0.00021369,2]
[380556839,1755808264311,-480.0,0.00021369,2]
[380556841,1755808264322,-502.39,0.00021369,2]
[380556843,1755808264331,-480.0,0.00021369,2]
[380556845,1755808264341,-2606.28,0.00021369,2]
[380556847,1755808264351,-480.0,0.00021369,2]
[380556849,1755808264360,-480.0,0.00021369,2]
[380556851,1755808264369,-2231.79,0.00021369,2]
[380556853,1755808264379,-685.12,0.00021369,2]
[380556855,1755808264388,-287.41349519,0.00021369,2]
[380556857,1755808264397,-560.33,0.00021369,2]
[380556859,1755808264407,-947.83,0.00021369,2]
[380556861,1755808264417,-764.17,0.00021369,2]
[380556863,1755808264428,-704.07,0.00021369,2]
[380556865,1755808264440,-432.1,0.00021369,2]
[380556867,1755808264449,-480.0,0.00021369,2]
[380556869,1755808264459,-480.0,0.00021369,2]
[380556870,1755808264469,-905.55,0.00021369,2]
[380556872,1755808264479,-1859.19,0.00021369,2]
[380556874,1755808264489,-1348.71,0.00021369,2]
[380556876,1755808264498,-1068.04,0.00021369,2]
[380556878,1755808264508,-480.0,0.00021369,2]
[380556880,1755808264519,-1092.9,0.00021369,2]
[380556882,1755808264528,-455.69,0.00021369,2]
[380556884,1755808264538,-4632.7,0.00021369,2]
[380556886,1755808264547,-480.0,0.00021369,2]
[380556888,1755808264556,-1639.18,0.00021369,2]
[380556890,1755808264567,-871.0,0.00021369,2]
[380556892,1755808264577,-480.0,0.00021369,2]
[380556894,1755808264587,-1839.51,0.00021369,2]
[380556896,1755808264596,-943.69,0.00021369,2]
[380556898,1755808264605,-1279.12,0.00021369,2]
[380556900,1755808264615,-500.19,0.00021369,2]
[380556902,1755808264624,-644.77,0.00021369,2]
[380556904,1755808264634,-7368.41,0.00021369,2]
[380556906,1755808264643,-904.57,0.00021369,2]
[380556908,1755808264653,-623.17,0.00021369,2]
[380556910,1755808264664,-480.0,0.00021369,2]
[380556912,1755808264673,-2226.97,0.00021369,2]
[380556914,1755808264685,-589.33,0.00021369,2]
[380556916,1755808264695,-2931.52,0.00021369,2]
[380556918,1755808264705,-1477.5,0.00021369,2]
[380556920,1755808264714,-480.0,0.00021369,2]
[380556921,1755808264723,-3237.28,0.00021369,2]
[380556923,1755808264732,-2381.45,0.00021369,2]
[380556925,1755808264742,-548.56,0.00021369,2]
[380556927,1755808264751,-283.01,0.00021369,2]
[380556929,1755808264760,-480.0,0.00021369,2]
[380556931,1755808264769,-7210.24,0.00021369,2]
[380556933,1755808264778,-480.0,0.00021369,2]
[380556935,1755808264787,-480.0,0.00021369,2]
[380556937,1755808264797,-494.32,0.00021369,2]
[380556939,1755808264806,-480.0,0.00021369,2]
[380556941,1755808264815,-804.93,0.00021369,2]
[380556943,1755808264825,-685.15,0.00021369,2]
[380556945,1755808264834,-480.0,0.00021369,2]
[380556947,1755808264843,-1714.15,0.00021369,2]
[380556949,1755808264852,-480.0,0.00021369,2]
[380556951,1755808264862,-480.0,0.00021369,2]
[380556953,1755808264871,-2021.04,0.00021369,2]
[380556955,1755808264880,-4624.04,0.00021369,2]
[380556957,1755808264889,-697.43,0.00021369,2]